[Event "Titled Tuesday Blitz July 13 2021"]
[White "Bazeev, German"]
[Black "Shafigullina, Zarina"]
[WhiteFideId "24119350"]
[BlackFideId "24174220"]
[WhiteElo "2462"]
[BlackElo "2087"]
[Result "1-0"]
[Round "03"]
[TimeControl "180+1"]
[Date "2021.07.13"]
[WhiteClock "0:00:37"]
[BlackClock "0:00:29"]

1. d4 {[%clk 0:03:00]}  Nf6 {[%clk 0:02:59]} 2. Bg5 {[%clk 0:02:59]}  Ne4 {[%clk 0:02:54]} 3. Bf4 {[%clk 0:02:59]}  c5 {[%clk 0:02:54]} 4. f3 {[%clk 0:02:58]}  Qa5+ {[%clk 0:02:53]} 5. c3 {[%clk 0:02:58]}  Nf6 {[%clk 0:02:52]} 6. d5 {[%clk 0:02:58]}  d6 {[%clk 0:02:51]} 7. e4 {[%clk 0:02:57]}  e6 {[%clk 0:02:50]} 8. dxe6 {[%clk 0:02:56]}  Bxe6 {[%clk 0:02:44]} 9. Nd2 {[%clk 0:02:31]}  d5 {[%clk 0:02:35]} 10. Bd3 {[%clk 0:02:17]}  Nc6 {[%clk 0:02:30]} 11. Ne2 {[%clk 0:02:14]}  Rd8 {[%clk 0:02:27]} 12. Qb1 {[%clk 0:02:00]}  Be7 {[%clk 0:02:23]} 13. O-O {[%clk 0:01:46]}  O-O {[%clk 0:02:16]} 14. e5 {[%clk 0:01:45]}  Nh5 {[%clk 0:02:16]} 15. Bxh7+ {[%clk 0:01:44]}  Kh8 {[%clk 0:02:16]} 16. Bf5 {[%clk 0:01:45]}  Qc7 {[%clk 0:02:02]} 17. Re1 {[%clk 0:01:31]}  Nxe5 {[%clk 0:01:43]} 18. Bxe5 {[%clk 0:01:30]}  Qxe5 {[%clk 0:01:43]} 19. Ng3 {[%clk 0:01:29]}  Qf6 {[%clk 0:01:32]} 20. Nxh5 {[%clk 0:01:19]}  Qg5 {[%clk 0:01:16]} 21. Bxe6 {[%clk 0:01:18]}  fxe6 {[%clk 0:01:14]} 22. Rxe6 {[%clk 0:01:19]}  Rd6 {[%clk 0:00:57]} 23. f4 {[%clk 0:01:06]}  Qxh5 {[%clk 0:00:47]} 24. Rxe7 {[%clk 0:01:04]}  Rh6 {[%clk 0:00:46]} 25. Nf3 {[%clk 0:01:03]}  Rxf4 {[%clk 0:00:44]} 26. Re5 {[%clk 0:00:52]}  Qf7 {[%clk 0:00:34]} 27. Qd3 {[%clk 0:00:38]}  d4 {[%clk 0:00:29]} 28. Rae1 {[%clk 0:00:37]} 1-0


[Site "https://www.chess.com"]

[Event "Titled Tuesday Blitz July 13 2021"]
[White "Borsuk, Konstantin"]
[Black "Ashwin, Jayaram"]
[WhiteFideId "14113406"]
[BlackFideId "5018137"]
[WhiteElo "2363"]
[BlackElo "2461"]
[Result "1-0"]
[Round "03"]
[TimeControl "180+1"]
[Date "2021.07.13"]
[WhiteClock "0:01:19"]
[BlackClock "0:00:08"]

1. d4 {[%clk 0:03:00]}  d5 {[%clk 0:02:58]} 2. c4 {[%clk 0:03:01]}  dxc4 {[%clk 0:02:58]} 3. Nc3 {[%clk 0:03:01]}  Nf6 {[%clk 0:02:58]} 4. e3 {[%clk 0:03:00]}  e6 {[%clk 0:02:52]} 5. Bxc4 {[%clk 0:03:01]}  a6 {[%clk 0:02:52]} 6. a4 {[%clk 0:03:00]}  c5 {[%clk 0:02:49]} 7. d5 {[%clk 0:03:01]}  exd5 {[%clk 0:02:48]} 8. Nxd5 {[%clk 0:03:01]}  Nxd5 {[%clk 0:02:48]} 9. Qxd5 {[%clk 0:03:00]}  Qxd5 {[%clk 0:02:48]} 10. Bxd5 {[%clk 0:03:01]}  Be7 {[%clk 0:02:48]} 11. Bd2 {[%clk 0:02:57]}  O-O {[%clk 0:02:47]} 12. Bc3 {[%clk 0:02:56]}  Ra7 {[%clk 0:02:39]} 13. a5 {[%clk 0:02:56]}  Nd7 {[%clk 0:02:37]} 14. h4 {[%clk 0:02:34]}  Nf6 {[%clk 0:02:36]} 15. Bc4 {[%clk 0:02:30]}  Ne4 {[%clk 0:02:22]} 16. Ne2 {[%clk 0:02:29]}  Bf5 {[%clk 0:02:11]} 17. f3 {[%clk 0:02:25]}  Nxc3 {[%clk 0:02:10]} 18. Nxc3 {[%clk 0:02:25]}  Bf6 {[%clk 0:02:02]} 19. g4 {[%clk 0:02:23]}  Bd7 {[%clk 0:01:59]} 20. g5 {[%clk 0:02:22]}  Bxc3+ {[%clk 0:01:58]} 21. bxc3 {[%clk 0:02:22]}  Bc6 {[%clk 0:01:58]} 22. Ke2 {[%clk 0:02:21]}  Raa8 {[%clk 0:01:58]} 23. e4 {[%clk 0:02:18]}  Kh8 {[%clk 0:01:53]} 24. Rad1 {[%clk 0:02:16]}  f6 {[%clk 0:01:53]} 25. Rd6 {[%clk 0:02:12]}  Rad8 {[%clk 0:01:41]} 26. Rhd1 {[%clk 0:02:11]}  Rxd6 {[%clk 0:01:36]} 27. Rxd6 {[%clk 0:02:12]}  fxg5 {[%clk 0:01:33]} 28. hxg5 {[%clk 0:02:11]}  g6 {[%clk 0:01:33]} 29. Bxa6 {[%clk 0:02:04]}  Ra8 {[%clk 0:01:17]} 30. Bc4 {[%clk 0:02:04]}  Kg7 {[%clk 0:00:54]} 31. a6 {[%clk 0:02:02]}  Ra7 {[%clk 0:00:40]} 32. Rf6 {[%clk 0:01:58]}  Be8 {[%clk 0:00:37]} 33. Re6 {[%clk 0:01:50]}  Kf8 {[%clk 0:00:36]} 34. Ke3 {[%clk 0:01:44]}  Bf7 {[%clk 0:00:32]} 35. Rb6 {[%clk 0:01:41]}  bxa6 {[%clk 0:00:25]} 36. Bxa6 {[%clk 0:01:41]}  Rc7 {[%clk 0:00:21]} 37. Bb7 {[%clk 0:01:30]}  Ke7 {[%clk 0:00:20]} 38. Bd5 {[%clk 0:01:30]}  Bxd5 {[%clk 0:00:18]} 39. exd5 {[%clk 0:01:30]}  Kd7 {[%clk 0:00:16]} 40. Ke4 {[%clk 0:01:26]}  Rc8 {[%clk 0:00:16]} 41. Ke5 {[%clk 0:01:26]}  Re8+ {[%clk 0:00:16]} 42. Re6 {[%clk 0:01:26]}  Rf8 {[%clk 0:00:15]} 43. Rf6 {[%clk 0:01:26]}  Re8+ {[%clk 0:00:15]} 44. Kf4 {[%clk 0:01:26]}  Re1 {[%clk 0:00:13]} 45. Rc6 {[%clk 0:01:24]}  Rd1 {[%clk 0:00:09]} 46. Rxc5 {[%clk 0:01:23]}  Kd6 {[%clk 0:00:10]} 47. Ra5 {[%clk 0:01:21]}  Rd3 {[%clk 0:00:09]} 48. Ke4 {[%clk 0:01:19]}  Rd1 {[%clk 0:00:09]} 49. Ra6+ {[%clk 0:01:19]}  Kc5 {[%clk 0:00:08]} 50. Rc6+ {[%clk 0:01:18]}  Kb5 {[%clk 0:00:08]} 51. c4+ {[%clk 0:01:19]}  Kb4 {[%clk 0:00:08]} 52. d6 {[%clk 0:01:19]} 1-0


[Site "https://www.chess.com"]

[Event "Titled Tuesday Blitz July 13 2021"]
[White "Bortnyk, Olexandr"]
[Black "Klimkowski, Jan"]
[WhiteFideId "14120828"]
[BlackFideId "21856222"]
[WhiteElo "2723"]
[BlackElo "1903"]
[Result "1-0"]
[Round "03"]
[TimeControl "180+1"]
[Date "2021.07.13"]
[WhiteClock "0:00:04"]
[BlackClock "0:00:11"]

1. d4 {[%clk 0:03:00]}  Nf6 {[%clk 0:03:00]} 2. Bf4 {[%clk 0:02:57]}  e6 {[%clk 0:02:57]} 3. Nc3 {[%clk 0:02:54]}  d5 {[%clk 0:02:57]} 4. Nb5 {[%clk 0:02:54]}  Na6 {[%clk 0:02:56]} 5. e3 {[%clk 0:02:55]}  c6 {[%clk 0:02:54]} 6. Nc3 {[%clk 0:02:54]}  Bb4 {[%clk 0:02:54]} 7. Bxa6 {[%clk 0:02:54]}  bxa6 {[%clk 0:02:50]} 8. Ne2 {[%clk 0:02:53]}  Nh5 {[%clk 0:02:43]} 9. Be5 {[%clk 0:02:42]}  f6 {[%clk 0:02:39]} 10. Ng3 {[%clk 0:02:23]}  Nxg3 {[%clk 0:02:35]} 11. Bxg3 {[%clk 0:02:23]}  a5 {[%clk 0:02:26]} 12. O-O {[%clk 0:02:22]}  Ba6 {[%clk 0:02:25]} 13. Re1 {[%clk 0:02:16]}  O-O {[%clk 0:02:25]} 14. a3 {[%clk 0:02:13]}  Bxc3 {[%clk 0:02:13]} 15. bxc3 {[%clk 0:02:14]}  a4 {[%clk 0:02:13]} 16. Rb1 {[%clk 0:01:54]}  Qd7 {[%clk 0:02:11]} 17. e4 {[%clk 0:01:50]}  Rae8 {[%clk 0:01:45]} 18. Qh5 {[%clk 0:01:36]}  Bb5 {[%clk 0:01:27]} 19. Re3 {[%clk 0:01:31]}  a6 {[%clk 0:01:19]} 20. Rbe1 {[%clk 0:01:26]}  Bc4 {[%clk 0:01:19]} 21. e5 {[%clk 0:01:19]}  f5 {[%clk 0:01:18]} 22. Bf4 {[%clk 0:01:15]}  Qf7 {[%clk 0:01:15]} 23. Qh4 {[%clk 0:01:14]}  Qe7 {[%clk 0:01:11]} 24. Bg5 {[%clk 0:01:13]}  Qf7 {[%clk 0:00:54]} 25. Rh3 {[%clk 0:01:12]}  Qg6 {[%clk 0:00:54]} 26. Rg3 {[%clk 0:01:11]}  f4 {[%clk 0:00:28]} 27. Bxf4 {[%clk 0:00:52]}  Qxc2 {[%clk 0:00:27]} 28. h3 {[%clk 0:00:19]}  Rf7 {[%clk 0:00:23]} 29. Qg4 {[%clk 0:00:17]}  Qf5 {[%clk 0:00:20]} 30. Qxf5 {[%clk 0:00:14]}  Rxf5 {[%clk 0:00:21]} 31. Bh6 {[%clk 0:00:14]}  g6 {[%clk 0:00:20]} 32. Rb1 {[%clk 0:00:14]}  Bb3 {[%clk 0:00:21]} 33. Bg5 {[%clk 0:00:12]}  Kf7 {[%clk 0:00:19]} 34. Bf6 {[%clk 0:00:12]}  Rb8 {[%clk 0:00:19]} 35. Re3 {[%clk 0:00:11]}  Rb5 {[%clk 0:00:18]} 36. g4 {[%clk 0:00:12]}  Rf4 {[%clk 0:00:18]} 37. f3 {[%clk 0:00:09]}  h6 {[%clk 0:00:16]} 38. Kf2 {[%clk 0:00:09]}  g5 {[%clk 0:00:16]} 39. Kg3 {[%clk 0:00:09]}  Kg6 {[%clk 0:00:16]} 40. h4 {[%clk 0:00:10]}  Rb7 {[%clk 0:00:12]} 41. hxg5 {[%clk 0:00:03]}  hxg5 {[%clk 0:00:13]} 42. Rh1 {[%clk 0:00:04]}  Bc4 {[%clk 0:00:09]} 43. Rh5 {[%clk 0:00:04]}  Rxf6 {[%clk 0:00:09]} 44. exf6 {[%clk 0:00:05]}  Kxf6 {[%clk 0:00:10]} 45. Rh6+ {[%clk 0:00:05]}  Kg7 {[%clk 0:00:10]} 46. Rexe6 {[%clk 0:00:05]}  Rb2 {[%clk 0:00:10]} 47. Reg6+ {[%clk 0:00:05]}  Kf7 {[%clk 0:00:10]} 48. Rxg5 {[%clk 0:00:05]}  Bf1 {[%clk 0:00:11]} 49. Rxc6 {[%clk 0:00:04]}  Rg2+ {[%clk 0:00:10]} 50. Kf4 {[%clk 0:00:05]}  Re2 {[%clk 0:00:11]} 51. Rxd5 {[%clk 0:00:04]}  Rf2 {[%clk 0:00:10]} 52. Rd7+ {[%clk 0:00:04]}  Ke8 {[%clk 0:00:11]} 53. Ra7 {[%clk 0:00:04]}  Be2 {[%clk 0:00:11]} 54. Rc8# {[%clk 0:00:04]} 1-0


[Site "https://www.chess.com"]

[Event "Titled Tuesday Blitz July 13 2021"]
[White "Chigaev, Maksim"]
[Black "Cunha, Lucas Aguiar"]
[WhiteFideId "4108116"]
[BlackFideId "2125404"]
[WhiteElo "2646"]
[BlackElo "2361"]
[Result "1-0"]
[Round "03"]
[TimeControl "180+1"]
[Date "2021.07.13"]
[WhiteClock "0:00:02"]
[BlackClock "0:00:07"]

1. d4 {[%clk 0:03:00]}  Nf6 {[%clk 0:02:59]} 2. c4 {[%clk 0:03:01]}  e6 {[%clk 0:03:00]} 3. Nf3 {[%clk 0:03:01]}  b6 {[%clk 0:02:59]} 4. g3 {[%clk 0:03:01]}  Ba6 {[%clk 0:03:00]} 5. Qc2 {[%clk 0:02:55]}  Bb7 {[%clk 0:03:00]} 6. Bg2 {[%clk 0:02:54]}  c5 {[%clk 0:03:00]} 7. d5 {[%clk 0:02:54]}  exd5 {[%clk 0:03:01]} 8. cxd5 {[%clk 0:02:54]}  Nxd5 {[%clk 0:03:02]} 9. O-O {[%clk 0:02:51]}  Be7 {[%clk 0:03:02]} 10. Rd1 {[%clk 0:02:50]}  Nf6 {[%clk 0:02:57]} 11. Nc3 {[%clk 0:02:48]}  O-O {[%clk 0:02:56]} 12. Bf4 {[%clk 0:02:15]}  Nc6 {[%clk 0:02:51]} 13. a3 {[%clk 0:02:04]}  Nh5 {[%clk 0:02:41]} 14. e3 {[%clk 0:02:00]}  Nxf4 {[%clk 0:02:38]} 15. exf4 {[%clk 0:02:00]}  Bf6 {[%clk 0:02:25]} 16. Rd2 {[%clk 0:01:23]}  Nd4 {[%clk 0:02:19]} 17. Nxd4 {[%clk 0:01:23]}  Bxg2 {[%clk 0:02:20]} 18. Nf5 {[%clk 0:01:24]}  Bc6 {[%clk 0:02:14]} 19. Rad1 {[%clk 0:01:22]}  Re8 {[%clk 0:01:41]} 20. Nd5 {[%clk 0:01:20]}  Re6 {[%clk 0:01:31]} 21. b4 {[%clk 0:01:16]}  cxb4 {[%clk 0:01:28]} 22. axb4 {[%clk 0:01:10]}  a5 {[%clk 0:01:14]} 23. bxa5 {[%clk 0:00:48]}  bxa5 {[%clk 0:01:13]} 24. Qc5 {[%clk 0:00:48]}  a4 {[%clk 0:01:07]} 25. Nxf6+ {[%clk 0:00:43]}  Qxf6 {[%clk 0:01:06]} 26. Nd4 {[%clk 0:00:43]}  a3 {[%clk 0:00:49]} 27. Nxe6 {[%clk 0:00:30]}  Qxe6 {[%clk 0:00:50]} 28. Qe3 {[%clk 0:00:24]}  Qc4 {[%clk 0:00:45]} 29. Ra1 {[%clk 0:00:14]}  a2 {[%clk 0:00:29]} 30. Qe2 {[%clk 0:00:06]}  Qb3 {[%clk 0:00:13]} 31. Rdxa2 {[%clk 0:00:03]}  Rxa2 {[%clk 0:00:07]} 32. Qe8# {[%clk 0:00:02]} 1-0


[Site "https://www.chess.com"]

[Event "Titled Tuesday Blitz July 13 2021"]
[White "Costachi, Mihnea"]
[Black "Vivas Zamora, Fabian Ernesto"]
[WhiteFideId "1217518"]
[BlackFideId "3902480"]
[WhiteElo "2482"]
[BlackElo "1966"]
[Result "1-0"]
[Round "03"]
[TimeControl "180+1"]
[Date "2021.07.13"]
[WhiteClock "0:01:01"]
[BlackClock "0:00:02"]

1. e4 {[%clk 0:03:00]}  e5 {[%clk 0:02:58]} 2. Nf3 {[%clk 0:02:54]}  Nc6 {[%clk 0:02:58]} 3. c3 {[%clk 0:02:52]}  d5 {[%clk 0:02:52]} 4. Qa4 {[%clk 0:02:48]}  Nf6 {[%clk 0:02:10]} 5. Nxe5 {[%clk 0:02:45]}  Bd6 {[%clk 0:01:50]} 6. Nxc6 {[%clk 0:02:43]}  bxc6 {[%clk 0:01:51]} 7. exd5 {[%clk 0:02:44]}  O-O {[%clk 0:01:48]} 8. dxc6 {[%clk 0:02:17]}  Re8+ {[%clk 0:01:43]} 9. Kd1 {[%clk 0:02:17]}  Ne4 {[%clk 0:01:34]} 10. Qd4 {[%clk 0:02:11]}  Qh4 {[%clk 0:01:17]} 11. Kc2 {[%clk 0:02:04]}  Bc5 {[%clk 0:01:10]} 12. Qa4 {[%clk 0:01:53]}  Bf5 {[%clk 0:01:04]} 13. Bd3 {[%clk 0:01:47]}  Rad8 {[%clk 0:00:57]} 14. g3 {[%clk 0:01:34]}  Nxf2 {[%clk 0:00:31]} 15. Qxh4 {[%clk 0:01:29]}  Bxd3+ {[%clk 0:00:29]} 16. Kb3 {[%clk 0:01:29]}  Rb8+ {[%clk 0:00:28]} 17. Ka4 {[%clk 0:01:29]}  Re4+ {[%clk 0:00:19]} 18. Qxe4 {[%clk 0:01:28]}  Bxe4 {[%clk 0:00:20]} 19. b4 {[%clk 0:01:21]}  Bxh1 {[%clk 0:00:14]} 20. bxc5 {[%clk 0:01:21]}  Bxc6+ {[%clk 0:00:15]} 21. Ka3 {[%clk 0:01:21]}  Nd3 {[%clk 0:00:14]} 22. c4 {[%clk 0:01:20]}  Nxc1 {[%clk 0:00:11]} 23. d4 {[%clk 0:01:12]}  Nd3 {[%clk 0:00:07]} 24. Nc3 {[%clk 0:01:08]}  g5 {[%clk 0:00:04]} 25. d5 {[%clk 0:01:08]}  Bd7 {[%clk 0:00:02]} 26. c6 {[%clk 0:01:08]}  Bf5 {[%clk 0:00:03]} 27. Nb5 {[%clk 0:01:06]}  Rb6 {[%clk 0:00:01]} 28. Nxc7 {[%clk 0:01:06]}  Ne5 {[%clk 0:00:02]} 29. Rc1 {[%clk 0:01:04]}  Kg7 {[%clk 0:00:01]} 30. Ne8+ {[%clk 0:01:01]}  Kf8 {[%clk 0:00:02]} 31. Nd6 {[%clk 0:01:01]} 1-0


[Site "https://www.chess.com"]

[Event "Titled Tuesday Blitz July 13 2021"]
[White "Djordjevic, Vuk"]
[Black "Terry, Renato"]
[WhiteFideId "902098"]
[BlackFideId "3803457"]
[WhiteElo "2463"]
[BlackElo "2581"]
[Result "0-1"]
[Round "03"]
[TimeControl "180+1"]
[Date "2021.07.13"]
[WhiteClock "0:00:44"]
[BlackClock "0:01:01"]

1. d4 {[%clk 0:03:00]}  e6 {[%clk 0:02:59]} 2. Bf4 {[%clk 0:03:01]}  Nf6 {[%clk 0:02:59]} 3. e3 {[%clk 0:03:01]}  b6 {[%clk 0:03:00]} 4. Nf3 {[%clk 0:03:00]}  Bb7 {[%clk 0:03:00]} 5. c4 {[%clk 0:02:59]}  Bd6 {[%clk 0:03:01]} 6. Bg3 {[%clk 0:02:57]}  O-O {[%clk 0:03:00]} 7. Nc3 {[%clk 0:02:57]}  Bxg3 {[%clk 0:02:59]} 8. hxg3 {[%clk 0:02:57]}  h6 {[%clk 0:03:00]} 9. Bd3 {[%clk 0:02:53]}  d6 {[%clk 0:03:00]} 10. Bc2 {[%clk 0:02:42]}  Qe7 {[%clk 0:02:56]} 11. Qd3 {[%clk 0:02:39]}  e5 {[%clk 0:02:54]} 12. d5 {[%clk 0:02:39]}  Nbd7 {[%clk 0:02:53]} 13. Nh4 {[%clk 0:02:38]}  Nc5 {[%clk 0:02:51]} 14. Qe2 {[%clk 0:02:35]}  Bc8 {[%clk 0:02:49]} 15. b4 {[%clk 0:02:25]}  Nb7 {[%clk 0:02:49]} 16. a3 {[%clk 0:02:07]}  a5 {[%clk 0:02:49]} 17. Kd2 {[%clk 0:02:07]}  Bd7 {[%clk 0:02:46]} 18. Bf5 {[%clk 0:01:54]}  e4 {[%clk 0:02:41]} 19. g4 {[%clk 0:01:51]}  g6 {[%clk 0:02:26]} 20. Bxg6 {[%clk 0:01:28]}  fxg6 {[%clk 0:02:26]} 21. Nxg6 {[%clk 0:01:29]}  Qg7 {[%clk 0:02:26]} 22. Nxf8 {[%clk 0:01:29]}  Rxf8 {[%clk 0:02:27]} 23. f3 {[%clk 0:01:27]}  Nd8 {[%clk 0:02:23]} 24. Rh4 {[%clk 0:01:21]}  Nf7 {[%clk 0:02:22]} 25. Rah1 {[%clk 0:01:21]}  axb4 {[%clk 0:02:17]} 26. axb4 {[%clk 0:01:20]}  Ra8 {[%clk 0:02:18]} 27. Kc2 {[%clk 0:01:21]}  Ra3 {[%clk 0:02:15]} 28. Qd2 {[%clk 0:01:14]}  Nxd5 {[%clk 0:01:57]} 29. cxd5 {[%clk 0:01:04]}  Ba4+ {[%clk 0:01:57]} 30. Kb2 {[%clk 0:00:51]}  Rb3+ {[%clk 0:01:56]} 31. Ka2 {[%clk 0:00:51]}  Rxc3 {[%clk 0:01:55]} 32. Rc1 {[%clk 0:00:49]}  Bb3+ {[%clk 0:01:10]} 33. Ka3 {[%clk 0:00:44]}  Rd3 {[%clk 0:01:01]} 0-1


[Site "https://www.chess.com"]

[Event "Titled Tuesday Blitz July 13 2021"]
[White "Gabrielian, Artur"]
[Black "Hansen, Sune Berg"]
[WhiteFideId "4131002"]
[BlackFideId "1400266"]
[WhiteElo "2523"]
[BlackElo "2599"]
[Result "0-1"]
[Round "03"]
[TimeControl "180+1"]
[Date "2021.07.13"]
[WhiteClock "0:00:04"]
[BlackClock "0:00:20"]

1. e4 {[%clk 0:03:00]}  e5 {[%clk 0:02:59]} 2. Nc3 {[%clk 0:03:00]}  Nf6 {[%clk 0:02:58]} 3. g3 {[%clk 0:03:00]}  d5 {[%clk 0:02:57]} 4. exd5 {[%clk 0:03:00]}  Nxd5 {[%clk 0:02:57]} 5. Bg2 {[%clk 0:03:00]}  Nxc3 {[%clk 0:02:58]} 6. bxc3 {[%clk 0:03:01]}  Bc5 {[%clk 0:02:58]} 7. Nf3 {[%clk 0:03:01]}  Nc6 {[%clk 0:02:58]} 8. O-O {[%clk 0:03:01]}  O-O {[%clk 0:02:59]} 9. Re1 {[%clk 0:03:01]}  Qf6 {[%clk 0:02:59]} 10. d3 {[%clk 0:02:59]}  h6 {[%clk 0:02:57]} 11. Be3 {[%clk 0:02:57]}  Bb6 {[%clk 0:02:53]} 12. Nd2 {[%clk 0:02:54]}  Qg6 {[%clk 0:02:51]} 13. Rb1 {[%clk 0:02:51]}  Bg4 {[%clk 0:02:50]} 14. Qc1 {[%clk 0:02:48]}  Rab8 {[%clk 0:02:45]} 15. Nc4 {[%clk 0:02:48]}  Bxe3 {[%clk 0:02:44]} 16. Qxe3 {[%clk 0:02:39]}  Rfe8 {[%clk 0:02:38]} 17. Bxc6 {[%clk 0:02:31]}  Qxc6 {[%clk 0:02:38]} 18. Nxe5 {[%clk 0:02:30]}  Qxc3 {[%clk 0:02:34]} 19. Qf4 {[%clk 0:01:56]}  Be6 {[%clk 0:02:33]} 20. Re2 {[%clk 0:01:52]}  Bxa2 {[%clk 0:02:21]} 21. Rbe1 {[%clk 0:01:51]}  Bd5 {[%clk 0:02:09]} 22. h4 {[%clk 0:01:41]}  f6 {[%clk 0:02:02]} 23. Nf3 {[%clk 0:01:34]}  Qc6 {[%clk 0:01:50]} 24. Nd4 {[%clk 0:01:25]}  Qd7 {[%clk 0:01:39]} 25. Nf5 {[%clk 0:01:22]}  Rxe2 {[%clk 0:01:30]} 26. Rxe2 {[%clk 0:01:22]}  Re8 {[%clk 0:01:26]} 27. Rxe8+ {[%clk 0:00:52]}  Qxe8 {[%clk 0:01:26]} 28. Kf1 {[%clk 0:00:52]}  Qd7 {[%clk 0:01:17]} 29. h5 {[%clk 0:00:40]}  Be6 {[%clk 0:01:15]} 30. Nd4 {[%clk 0:00:39]}  Bf7 {[%clk 0:01:11]} 31. g4 {[%clk 0:00:39]}  a5 {[%clk 0:01:05]} 32. Nf5 {[%clk 0:00:37]}  Be6 {[%clk 0:01:05]} 33. Ne3 {[%clk 0:00:31]}  a4 {[%clk 0:01:02]} 34. Qb4 {[%clk 0:00:31]}  b5 {[%clk 0:00:57]} 35. Ke2 {[%clk 0:00:21]}  c6 {[%clk 0:00:48]} 36. Kd2 {[%clk 0:00:20]}  Kf7 {[%clk 0:00:45]} 37. f4 {[%clk 0:00:19]}  Qe7 {[%clk 0:00:44]} 38. Qc3 {[%clk 0:00:18]}  Qd6 {[%clk 0:00:39]} 39. f5 {[%clk 0:00:18]}  Bd5 {[%clk 0:00:38]} 40. Qa5 {[%clk 0:00:16]}  Qh2+ {[%clk 0:00:32]} 41. Kc3 {[%clk 0:00:13]}  Qe5+ {[%clk 0:00:28]} 42. Kd2 {[%clk 0:00:13]}  Kg8 {[%clk 0:00:26]} 43. Qa8+ {[%clk 0:00:06]}  Kh7 {[%clk 0:00:26]} 44. Qa7 {[%clk 0:00:07]}  Qh2+ {[%clk 0:00:21]} 45. Kc3 {[%clk 0:00:07]}  Qe5+ {[%clk 0:00:20]} 46. Kd2 {[%clk 0:00:08]}  Qf4 {[%clk 0:00:21]} 47. Qe7 {[%clk 0:00:05]}  b4 {[%clk 0:00:19]} 48. Kc1 {[%clk 0:00:05]}  a3 {[%clk 0:00:19]} 49. Kb1 {[%clk 0:00:05]}  a2+ {[%clk 0:00:20]} 50. Kb2 {[%clk 0:00:04]}  Qd4+ {[%clk 0:00:20]} 51. Kc1 {[%clk 0:00:04]}  a1=Q+ {[%clk 0:00:20]} 0-1


[Site "https://www.chess.com"]

[Event "Titled Tuesday Blitz July 13 2021"]
[White "Ghazarian, Kirk"]
[Black "Maksimovic, Bojan"]
[WhiteFideId "30908604"]
[BlackFideId "14408120"]
[WhiteElo "2003"]
[BlackElo "2439"]
[Result "0-1"]
[Round "03"]
[TimeControl "180+1"]
[Date "2021.07.13"]
[WhiteClock "0:00:02"]
[BlackClock "0:00:06"]

1. e4 {[%clk 0:03:00]}  c5 {[%clk 0:02:59]} 2. Nf3 {[%clk 0:02:55]}  Nc6 {[%clk 0:02:59]} 3. d4 {[%clk 0:02:53]}  cxd4 {[%clk 0:03:00]} 4. Nxd4 {[%clk 0:02:53]}  Nf6 {[%clk 0:03:00]} 5. Nc3 {[%clk 0:02:52]}  e5 {[%clk 0:03:00]} 6. Nb3 {[%clk 0:02:46]}  Bb4 {[%clk 0:02:59]} 7. Bd3 {[%clk 0:02:43]}  d5 {[%clk 0:02:58]} 8. exd5 {[%clk 0:02:37]}  Nxd5 {[%clk 0:02:57]} 9. Bd2 {[%clk 0:02:37]}  Nxc3 {[%clk 0:02:56]} 10. bxc3 {[%clk 0:02:32]}  Be7 {[%clk 0:02:49]} 11. O-O {[%clk 0:02:30]}  O-O {[%clk 0:02:49]} 12. Re1 {[%clk 0:02:29]}  Qc7 {[%clk 0:02:48]} 13. c4 {[%clk 0:02:27]}  Be6 {[%clk 0:02:35]} 14. Bc3 {[%clk 0:02:22]}  Rad8 {[%clk 0:02:24]} 15. Qh5 {[%clk 0:02:17]}  g6 {[%clk 0:02:20]} 16. Qh6 {[%clk 0:02:12]}  Bf6 {[%clk 0:01:53]} 17. Nd2 {[%clk 0:02:01]}  Bg7 {[%clk 0:01:50]} 18. Qh4 {[%clk 0:01:56]}  Nd4 {[%clk 0:01:44]} 19. Bb4 {[%clk 0:01:35]}  Rfe8 {[%clk 0:01:21]} 20. Ne4 {[%clk 0:01:30]}  Bxc4 {[%clk 0:01:14]} 21. Bd6 {[%clk 0:01:11]}  Qc6 {[%clk 0:00:33]} 22. Bxc4 {[%clk 0:00:52]}  Qxc4 {[%clk 0:00:32]} 23. Nf6+ {[%clk 0:00:43]}  Bxf6 {[%clk 0:00:30]} 24. Qxf6 {[%clk 0:00:44]}  Qe6 {[%clk 0:00:15]} 25. Bxe5 {[%clk 0:00:32]}  Qxf6 {[%clk 0:00:15]} 26. Bxf6 {[%clk 0:00:29]}  Nxc2 {[%clk 0:00:15]} 27. Bxd8 {[%clk 0:00:12]}  Nxe1 {[%clk 0:00:07]} 28. Ba5 {[%clk 0:00:07]}  Nd3 {[%clk 0:00:04]} 29. Rd1 {[%clk 0:00:07]}  Nc5 {[%clk 0:00:02]} 30. g4 {[%clk 0:00:06]}  b5 {[%clk 0:00:01]} 31. Bc3 {[%clk 0:00:07]}  Ne6 {[%clk 0:00:01]} 32. Rd5 {[%clk 0:00:06]}  Rc8 {[%clk 0:00:02]} 33. Bf6 {[%clk 0:00:06]}  a6 {[%clk 0:00:02]} 34. Rd6 {[%clk 0:00:07]}  Ra8 {[%clk 0:00:03]} 35. Rd7 {[%clk 0:00:07]}  Kf8 {[%clk 0:00:04]} 36. Kg2 {[%clk 0:00:06]}  Ke8 {[%clk 0:00:04]} 37. Re7+ {[%clk 0:00:07]}  Kf8 {[%clk 0:00:05]} 38. Rb7 {[%clk 0:00:07]}  Ke8 {[%clk 0:00:04]} 39. Kg3 {[%clk 0:00:07]}  Nc5 {[%clk 0:00:04]} 40. Re7+ {[%clk 0:00:07]}  Kf8 {[%clk 0:00:05]} 41. Rc7 {[%clk 0:00:06]}  Ne4+ {[%clk 0:00:05]} 42. Kf4 {[%clk 0:00:04]}  Nxf6 {[%clk 0:00:06]} 43. Kg5 {[%clk 0:00:05]}  Ne4+ {[%clk 0:00:06]} 44. Kh6 {[%clk 0:00:06]}  Kg8 {[%clk 0:00:06]} 45. f4 {[%clk 0:00:05]}  Rd8 {[%clk 0:00:06]} 46. h3 {[%clk 0:00:04]}  Nd6 {[%clk 0:00:06]} 47. h4 {[%clk 0:00:04]}  f6 {[%clk 0:00:06]} 48. h5 {[%clk 0:00:02]}  Nf7+ {[%clk 0:00:06]} 0-1


[Site "https://www.chess.com"]

[Event "Titled Tuesday Blitz July 13 2021"]
[White "Gogolev, Artem"]
[Black "Bartel, Michal"]
[WhiteFideId "4116615"]
[BlackFideId "1119257"]
[WhiteElo "2191"]
[BlackElo "2271"]
[Result "1-0"]
[Round "03"]
[TimeControl "180+1"]
[Date "2021.07.13"]
[WhiteClock "0:00:21"]
[BlackClock "0:01:49"]

1. d4 {[%clk 0:02:32]}  Nf6 {[%clk 0:02:56]} 2. Nf3 {[%clk 0:02:24]}  c5 {[%clk 0:02:56]} 3. d5 {[%clk 0:02:22]}  e6 {[%clk 0:02:48]} 4. c4 {[%clk 0:02:21]}  exd5 {[%clk 0:02:48]} 5. cxd5 {[%clk 0:02:20]}  d6 {[%clk 0:02:49]} 6. Nc3 {[%clk 0:02:19]}  g6 {[%clk 0:02:45]} 7. g3 {[%clk 0:02:19]}  Bg7 {[%clk 0:02:39]} 8. Bg2 {[%clk 0:02:19]}  O-O {[%clk 0:02:38]} 9. O-O {[%clk 0:02:19]}  Re8 {[%clk 0:02:38]} 10. Nd2 {[%clk 0:02:16]}  Nbd7 {[%clk 0:02:38]} 11. a4 {[%clk 0:02:13]}  a6 {[%clk 0:02:35]} 12. h3 {[%clk 0:02:12]}  Ne5 {[%clk 0:02:28]} 13. f4 {[%clk 0:02:05]}  Ned7 {[%clk 0:02:28]} 14. e4 {[%clk 0:02:02]}  Rb8 {[%clk 0:02:28]} 15. Nc4 {[%clk 0:01:59]}  Qc7 {[%clk 0:02:29]} 16. a5 {[%clk 0:01:55]}  b5 {[%clk 0:02:29]} 17. axb6 {[%clk 0:01:44]}  Nxb6 {[%clk 0:02:27]} 18. Na5 {[%clk 0:01:16]}  Bd7 {[%clk 0:02:27]} 19. Kh2 {[%clk 0:01:15]}  Bb5 {[%clk 0:02:27]} 20. Re1 {[%clk 0:01:15]}  Re7 {[%clk 0:02:21]} 21. e5 {[%clk 0:01:10]}  Nfd7 {[%clk 0:02:18]} 22. Nxb5 {[%clk 0:01:07]}  axb5 {[%clk 0:02:18]} 23. Nc6 {[%clk 0:01:07]}  Rbe8 {[%clk 0:02:16]} 24. Ra7 {[%clk 0:00:54]}  Qc8 {[%clk 0:02:07]} 25. Nxe7+ {[%clk 0:00:54]}  Rxe7 {[%clk 0:02:08]} 26. exd6 {[%clk 0:00:52]}  Rxe1 {[%clk 0:02:08]} 27. Qxe1 {[%clk 0:00:52]}  Bf8 {[%clk 0:02:04]} 28. Rc7 {[%clk 0:00:35]}  Qa8 {[%clk 0:01:58]} 29. Rc6 {[%clk 0:00:33]}  Qa1 {[%clk 0:01:56]} 30. Bd2 {[%clk 0:00:28]}  Qxb2 {[%clk 0:01:56]} 31. Bc3 {[%clk 0:00:28]}  Qc2 {[%clk 0:01:53]} 32. Rxb6 {[%clk 0:00:27]}  Nxb6 {[%clk 0:01:50]} 33. Qe5 {[%clk 0:00:27]}  f5 {[%clk 0:01:49]} 34. Qe6# {[%clk 0:00:21]} 1-0


[Site "https://www.chess.com"]